bitfinex-derivatives/quotes_ETHF0:USTF0_20250903
["timestamp","ask_amount","ask_price","bid_price","bid_amount"]
[1756908245909,32.588,4423.6,4423.4,41.10309999]
[1756908246107,0.246,4423.5,4423.4,40.8]
[1756908246600,0.246,4423.5,4423.4,41.10309999]
[1756908246802,1.4713,4423.5,4423.4,40.8]
[1756908247305,1.1145,4423.5,4423.4,40.8]
[1756908247599,32.588,4423.6,4423.4,41.10309999]
[1756908247907,0.246,4423.5,4423.4,40.8]
[1756908248198,0.17908485,4425.3,4423.4,40.8]
[1756908248199,3.5646,4425.5,4423.5,4.30309999]
[1756908248406,0.246,4425.0,4424.8,3.51089999]
[1756908248804,0.246,4425.0,4424.8,3.2078]
[1756908249001,0.246,4425.0,4424.9,0.30309999]
[1756908249206,0.246,4425.0,4424.8,3.2078]
[1756908249404,0.3568,4426.0,4424.9,0.30309999]
[1756908249602,0.246,4425.9,4425.6,3.51089999]
[1756908249899,0.8685,4425.8,4425.7,40.8]
[1756908250409,1.1145,4426.3,4425.7,41.10309999]
[1756908250605,0.246,4426.3,4425.7,40.8]
[1756908250900,1.1145,4426.3,4426.2,0.30309999]
[1756908251294,5.1145,4426.3,4425.6,3.2078]
[1756908251497,0.3568,4426.0,4425.6,3.51089999]
[1756908252208,0.3568,4426.0,4425.7,40.8]
[1756908252504,0.246,4425.9,4425.7,40.8]
[1756908252800,0.246,4426.3,4425.7,41.2066]
[1756908253006,0.246,4426.7,4426.4,0.30309999]
[1756908253201,0.246,4426.7,4426.2,3.2078]
[1756908253399,0.246,4426.7,4426.6,0.30309999]
[1756908253602,1.1355,4426.7,4426.6,0.30309999]
[1756908253802,0.8895,4426.6,4426.2,3.2078]
[1756908254005,0.8895,4426.4,4425.6,3.2078]
[1756908254200,0.3378,4426.0,4425.7,0.30309999]
[1756908254401,0.246,4425.9,4425.6,3.2078]
[1756908254607,0.8895,4425.9,4425.6,3.2078]
[1756908254804,0.3378,4426.0,4425.6,3.2078]
[1756908255002,0.3378,4426.0,4425.6,3.51089999]
[1756908255295,0.246,4425.9,4425.7,0.30309999]
[1756908255499,0.8895,4425.8,4425.6,3.2078]
[1756908256007,0.246,4425.7,4425.6,3.2078]
[1756908256208,1.1355,4425.7,4425.6,3.2078]
[1756908256907,0.8895,4425.7,4425.6,3.2078]
[1756908257104,1.1355,4425.7,4425.6,3.2078]
[1756908257505,1.1355,4425.7,4425.1,3.2078]
[1756908257506,0.3378,4425.5,4425.1,3.2078]
[1756908257910,0.8895,4425.4,4424.6,3.2078]
[1756908258109,0.3378,4425.0,4424.9,0.30309999]
[1756908258408,0.5838,4425.0,4424.7,0.30309999]
[1756908259004,0.8895,4424.9,4424.6,3.2078]
[1756908259310,0.5838,4425.0,4424.6,3.2078]
[1756908259712,0.5838,4425.0,4424.7,40.8]
[1756908259909,0.8895,4424.9,4424.7,40.8]
[1756908260215,0.246,4425.3,4424.7,40.8]
[1756908260512,32.8988,4426.0,4425.1,3.2078]
[1756908260513,0.246,4425.7,4425.1,3.2078]
[1756908260713,0.246,4425.7,4425.6,0.30309999]
[1756908261106,33.7883,4426.0,4425.1,3.61445]
[1756908261301,0.246,4425.9,4425.6,41.10309999]
[1756908261507,0.8895,4425.8,4425.6,40.8]
[1756908261710,0.8895,4425.8,4425.6,41.10309999]
[1756908261910,0.246,4425.9,4425.6,41.10309999]
[1756908262208,0.246,4425.9,4425.6,40.8]
[1756908262508,32.8988,4426.0,4425.6,44.0078]
[1756908262713,0.245,4425.9,4425.6,44.0078]
[1756908263010,0.245,4425.9,4425.8,0.30309999]
[1756908263211,0.3378,4427.0,4425.9,0.40658]
[1756908263507,0.245,4426.9,4426.4,0.40653]
[1756908263708,0.245,4426.8,4426.6,0.40652]
[1756908263910,0.8895,4427.3,4426.9,0.30309999]
[1756908264110,1.1345,4427.2,4426.9,0.30309999]
[1756908264312,0.8895,4427.1,4426.9,0.30309999]
[1756908264505,0.3378,4427.0,4426.5,40.8]
[1756908264910,0.3378,4427.0,4426.7,0.30309999]
[1756908265308,0.3378,4427.0,4426.8,0.30309999]
[1756908265707,1.2273,4427.0,4426.8,0.30309999]
[1756908266108,0.245,4427.1,4426.9,0.30309999]
[1756908266311,0.245,4427.0,4426.9,0.30309999]
[1756908266515,0.245,4427.0,4426.7,3.2078]
[1756908266715,0.8895,4427.3,4426.9,0.30309999]
[1756908266918,1.2273,4428.0,4427.2,3.2078]
[1756908267218,0.245,4428.0,4427.9,0.30309999]
[1756908267607,0.245,4428.0,4427.9,41.10309999]
[1756908268212,206.32753581,4431.1,4427.9,45.10309999]
[1756908268213,1.2273,4429.0,4427.9,45.10309999]
[1756908268424,0.8895,4428.7,4427.9,40.8]
[1756908268716,0.245,4428.8,4428.4,0.30309999]
[1756908268915,0.51744984,4428.7,4428.4,0.30309999]
[1756908269111,0.3378,4429.0,4428.4,0.30309999]
[1756908269312,0.76216258,4428.8,4428.4,0.30309999]
[1756908269510,0.51742555,4428.7,4428.4,0.30309999]
[1756908269707,0.245,4428.8,4428.4,0.30309999]
[1756908269911,0.8895,4428.4,4428.2,3.2078]
[1756908270118,1.1345,4428.3,4428.2,3.2078]
[1756908271315,1.65203076,4428.3,4428.2,3.2078]
[1756908271516,1.1345,4428.3,4428.2,3.2078]
[1756908272120,1.2273,4428.0,4427.9,40.8]
[1756908272624,1.2273,4428.0,4427.9,41.10309999]
[1756908272916,0.8895,4428.5,4427.9,41.10309999]
[1756908273121,0.8895,4428.5,4428.4,0.30309999]
[1756908273423,1.74527581,4428.5,4428.4,0.30309999]
[1756908274019,1.74527581,4428.5,4427.9,40.8]
[1756908274215,0.8895,4428.3,4428.1,0.30309999]
[1756908274415,1.40747581,4428.2,4428.1,0.30309999]
[1756908274619,0.8895,4428.1,4427.9,40.8]
[1756908274817,0.8895,4428.4,4428.1,0.30309999]
[1756908275012,0.8895,4428.2,4428.1,0.30309999]
[1756908275324,0.8895,4428.1,4427.9,40.8]
[1756908275513,1.74543808,4428.0,4427.9,40.8]
[1756908276521,1.99043808,4428.0,4427.9,40.8]
[1756908277214,0.51813808,4428.0,4427.9,41.10309999]
[1756908277414,0.8895,4428.5,4428.3,0.40638]
[1756908277619,0.51892487,4428.4,4428.3,0.40638]
[1756908277821,0.51892487,4428.4,4428.3,3.61418]
[1756908278118,0.51892487,4428.4,4428.3,44.0078]
[1756908278822,0.17,4428.9,4428.4,1.01595]
[1756908279019,1.0595,4428.9,4428.8,3.2078]
[1756908279225,1.57866505,4428.9,4428.8,3.51089999]
[1756908279423,1.82366505,4428.9,4428.8,3.2078]
[1756908279626,0.8895,4428.4,4428.3,40.8]
[1756908279822,1.40860327,4428.4,4428.3,40.8]
[1756908280022,1.65360327,4428.4,4428.3,40.8]
[1756908280824,0.3378,4428.0,4427.1,3.2078]
[1756908281030,0.8895,4427.4,4426.6,3.2078]
[1756908281325,1.2273,4427.0,4426.6,3.2078]
[1756908281522,1.40860327,4426.9,4426.8,0.30309999]
[1756908281828,1.40860327,4426.9,4426.8,41.10309999]
[1756908282125,1.40860327,4426.9,4426.8,40.8]
[1756908282528,0.8548,4426.4,4426.1,3.2078]
[1756908282718,0.3346,4426.0,4425.6,3.2078]
[1756908283030,0.8548,4425.8,4425.7,41.10309999]
[1756908283232,1.61890327,4425.8,4425.7,41.10309999]
[1756908283527,0.76410327,4425.8,4425.7,41.10309999]
[1756908283726,0.51910327,4425.8,4425.7,41.10309999]
[1756908283917,0.51910327,4426.2,4425.7,41.10309999]
[1756908284228,0.51910327,4426.1,4425.8,0.40662]
[1756908284426,0.245,4426.2,4426.0,3.2078]
[1756908284623,0.51942595,4426.1,4426.0,3.2078]
[1756908284823,0.51942712,4426.1,4426.0,3.2078]
[1756908285028,0.51942712,4426.1,4426.0,3.51089999]
[1756908285327,0.245,4426.4,4426.0,3.51089999]
[1756908285525,0.245,4426.5,4426.0,3.2078]
[1756908285725,0.51941624,4426.4,4426.0,3.2078]
[1756908286030,0.245,4426.8,4426.5,0.30309999]
[1756908286226,0.51941937,4426.7,4426.5,3.51089999]
[1756908286425,0.51941937,4426.6,4426.5,3.2078]
[1756908286620,0.245,4426.8,4426.5,44.0078]
[1756908286928,0.5194839,4426.7,4426.5,44.0078]
[1756908287130,0.245,4427.0,4426.5,44.0078]
[1756908287429,0.51958575,4426.9,4426.8,0.30309999]
[1756908287630,0.51958575,4426.9,4426.6,0.40654]
[1756908287825,0.245,4427.0,4426.5,3.61435]
[1756908288024,1.0998,4427.0,4426.9,0.30309999]
[1756908288223,1.61938286,4427.0,4426.9,0.30309999]
[1756908288822,1.37438286,4427.0,4426.9,0.30309999]
[1756908290734,0.51958286,4427.0,4426.9,0.30309999]
[1756908291128,0.51958286,4427.0,4426.9,4.54809999]
[1756908291333,0.8548,4428.1,4427.1,1.01626]
[1756908291636,0.245,4428.3,4428.0,44.71731999]
[1756908291931,1.0998,4428.3,4428.2,0.30309999]
[1756908292127,0.8548,4428.8,4428.2,0.70949999]
[1756908292329,0.8548,4428.8,4428.4,0.30309999]
[1756908292330,1.1894,4428.5,4428.4,0.30309999]
[1756908292732,0.8548,4428.4,4428.1,0.40641]
[1756908292933,1.4344,4428.5,4428.4,0.30309999]
[1756908293427,0.245,4428.7,4428.4,0.30309999]
[1756908293628,0.8548,4428.6,4428.5,0.70946999]
[1756908293828,0.8548,4428.6,4428.5,0.30309999]
[1756908294034,0.245,4428.7,4428.5,40.8]
[1756908294232,0.8548,4428.6,4428.5,40.8]
[1756908295834,0.8548,4428.8,4428.5,44.0078]
[1756908296235,0.3346,4429.0,4428.5,44.31089999]
[1756908296536,0.8548,4428.8,4428.5,44.31089999]
[1756908296741,0.8548,4428.7,4428.5,44.31089999]
[1756908297038,0.245,4428.8,4428.5,44.31089999]
[1756908297240,0.8548,4428.8,4428.6,4.228944]
[1756908297443,0.17,4428.9,4428.6,4.228944]
[1756908297444,1.2698,4428.9,4428.6,4.228944]
[1756908297634,0.8548,4428.8,4428.5,44.0078]
[1756908297834,0.17,4428.9,4428.5,44.31089999]
[1756908298235,0.8548,4428.8,4428.5,44.0078]
[1756908298443,0.17,4428.9,4428.8,0.30309999]
[1756908298834,0.17,4428.9,4428.8,8.17084401]
[1756908299040,0.17,4428.9,4428.8,8.39663401]
[1756908299239,0.17,4428.9,4428.8,4.39663401]
[1756908299440,0.17,4428.9,4428.8,45.19663401]
[1756908299631,0.17,4428.9,4428.8,41.02579]
[1756908299835,0.17,4428.9,4428.8,45.27079]
[1756908300036,0.17,4428.9,4428.8,49.19663401]
[1756908300238,1.0248,4428.9,4428.8,40.8]
[1756908300830,0.17,4428.9,4428.8,40.8]
[1756908301038,0.17,4428.9,4428.8,41.045]
[1756908302138,1.0248,4428.9,4428.8,41.045]
[1756908302844,1.0248,4428.9,4428.8,40.8]
[1756908304250,5.0248,4428.9,4428.8,40.8]
[1756908304638,0.8548,4428.4,4428.0,3.2078]
[1756908304946,0.8548,4428.2,4428.0,3.2078]
[1756908305141,0.8548,4428.2,4428.1,40.8]
[1756908306041,0.3346,4427.5,4427.0,3.2078]
[1756908306249,0.5796,4427.5,4427.0,3.2078]
[1756908306449,0.8548,4427.4,4427.0,3.2078]
[1756908306652,0.8548,4427.4,4427.1,40.8]
[1756908306945,0.5796,4427.5,4427.1,40.8]
[1756908307142,0.8548,4427.4,4427.1,40.8]
[1756908307345,0.5796,4427.5,4427.1,40.8]
[1756908308243,0.8548,4427.4,4427.1,40.8]
[1756908308449,7.7874,4427.5,4427.1,40.8]
[1756908308647,0.8548,4427.4,4427.1,40.8]
[1756908309049,7.7874,4427.5,4427.1,40.8]
[1756908309245,7.7874,4427.5,4426.5,3.2078]
[1756908309246,3.92584401,4427.4,4426.5,3.2078]
[1756908309442,4.01327001,4427.5,4424.6,1.01685]
[1756908309443,0.3346,4426.5,4426.0,3.2078]
[1756908309644,0.245,4426.4,4426.0,3.2078]
[1756908309839,0.8548,4426.3,4426.1,40.8]
[1756908310550,0.245,4426.4,4426.1,40.8]
[1756908310745,0.3346,4426.5,4426.1,40.8]
[1756908310946,0.8548,4426.3,4426.1,40.8]
[1756908311252,0.245,4426.6,4426.2,0.40659]
[1756908311553,0.8866,4426.6,4426.5,0.30309999]
[1756908312139,0.8866,4426.6,4426.5,41.10309999]
[1756908312343,0.8866,4426.6,4426.5,40.8]
[1756908314839,1.1316,4426.6,4426.5,41.10309999]
[1756908315043,0.3346,4427.0,4426.5,44.31089999]
[1756908315345,0.8866,4426.8,4426.5,44.0078]
[1756908315746,0.245,4426.9,4426.7,0.30309999]
[1756908315947,0.245,4426.9,4426.5,44.0078]
[1756908316151,1.1316,4426.9,4426.8,0.30309999]
[1756908316547,0.245,4427.0,4426.7,0.40655]
[1756908316747,0.245,4427.0,4426.9,0.30309999]
[1756908317352,0.8866,4427.9,4426.9,49.028944]
[1756908317652,0.8866,4427.9,4427.7,0.40645]
[1756908317842,0.8866,4427.9,4427.8,0.30309999]
[1756908318248,0.5796,4428.0,4427.6,0.40647]
[1756908318552,4.0944,4428.4,4427.8,41.20645]
[1756908318749,0.8866,4428.1,4427.8,40.8]
[1756908319055,0.3413,4428.0,4427.8,41.10309999]
[1756908319250,0.8866,4427.9,4427.8,41.10309999]
[1756908319451,0.245,4428.2,4428.0,0.40643]
[1756908319651,0.245,4428.4,4428.3,0.4064]
[1756908319852,0.245,4428.4,4427.8,41.81613]
[1756908319853,1.1316,4428.4,4428.2,0.40641]
[1756908320046,1.1316,4428.4,4428.0,0.40643]
[1756908320354,1.1316,4428.4,4427.8,40.8]
[1756908320355,0.245,4428.4,4428.1,0.30309999]
[1756908320853,3.2078,4428.6,4427.8,41.20644]
[1756908321057,0.245,4428.4,4428.2,0.40641]
[1756908321254,0.245,4428.4,4428.3,0.30309999]
[1756908321559,1.1316,4428.4,4428.3,0.30309999]
[1756908321751,0.8866,4428.3,4427.1,1.01629]
[1756908322053,0.8866,4428.3,4427.8,0.40644]
[1756908322259,0.8866,4428.3,4428.2,40.8]
[1756908322957,1.1316,4428.3,4428.2,40.8]
[1756908323150,0.245,4428.3,4428.2,41.10309999]
[1756908323357,3.2078,4428.6,4428.2,41.10309999]
[1756908323555,0.8866,4428.7,4428.3,0.4064]
[1756908323757,0.8866,4428.7,4428.6,0.40637]
[1756908323952,1.1316,4428.7,4428.6,0.40637]
[1756908324159,0.8866,4428.6,4428.4,0.40639]
[1756908324357,0.245,4428.7,4428.5,0.40638]
[1756908324559,0.245,4428.7,4428.6,0.30309999]
[1756908324756,0.3413,4428.5,4428.2,40.8]
[1756908324958,0.3413,4428.5,4428.2,41.10309999]
[1756908325153,0.3413,4428.5,4428.3,0.4064]
[1756908325348,0.245,4428.8,4428.6,0.40638]
[1756908325553,0.17,4428.9,4428.8,0.40636]
[1756908325753,0.17,4428.9,4428.8,0.70945999]
[1756908325957,0.17,4428.9,4428.8,0.40636]
[1756908326153,0.17,4428.9,4428.8,41.20636]
[1756908327157,1.0566,4428.9,4428.8,41.20636]
[1756908327350,0.17,4428.9,4428.8,41.20636]
[1756908327556,1.0566,4428.9,4428.8,40.8]
[1756908328252,0.17,4428.9,4428.8,40.8]
[1756908330148,0.8866,4429.9,4429.2,0.40633]
[1756908330353,0.8866,4429.7,4429.5,0.4063]
[1756908330758,0.244,4429.7,4429.5,0.4063]
[1756908330958,32.533,4430.8,4429.5,0.4063]
[1756908330959,0.8866,4429.6,4429.5,0.4063]
[1756908331462,32.533,4430.8,4429.4,3.2078]
[1756908331463,0.8866,4429.9,4429.4,3.2078]
[1756908331660,0.244,4429.8,4429.7,0.40628]
[1756908331859,0.244,4429.8,4429.5,0.70939999]
[1756908332057,0.244,4429.8,4429.5,0.30309999]
[1756908332258,0.244,4429.8,4429.4,3.2078]
[1756908332259,1.2279,4430.0,4429.8,0.40628]
[1756908332459,0.8866,4429.9,4429.8,0.40628]
[1756908332762,0.8866,4429.9,4429.8,40.8]
[1756908332763,1.1306,4429.9,4429.8,40.8]
[1756908334964,0.8866,4429.9,4429.8,40.8]
[1756908335258,1.1306,4429.9,4429.8,40.8]
[1756908335660,5.1306,4429.9,4429.8,40.8]
[1756908336062,0.3413,4429.0,4428.8,3.2078]
[1756908336262,1.1306,4428.9,4428.8,0.30309999]
[1756908336465,0.244,4428.9,4428.4,0.4064]
[1756908336764,0.244,4428.9,4428.2,3.2078]
[1756908336765,0.3413,4428.5,4428.2,3.2078]
[1756908336964,0.8866,4428.3,4428.2,0.30309999]
[1756908337151,0.8866,4428.3,4427.7,3.38583617]
[1756908337353,0.8866,4427.4,4427.2,3.2078]
[1756908337660,0.8866,4427.2,4426.6,3.2078]
[1756908337957,0.8866,4426.9,4426.6,3.2078]
[1756908338261,0.244,4426.8,4426.3,0.40659]
[1756908338560,0.3413,4426.5,4426.4,0.30309999]
[1756908338753,1.2279,4426.5,4426.4,41.10309999]
[1756908339556,1.2279,4426.5,4426.4,40.8]
[1756908340264,5.2279,4426.5,4426.4,40.8]
[1756908340556,0.3413,4426.0,4425.6,3.2078]
[1756908340757,0.8866,4425.8,4425.7,0.30309999]
[1756908341060,0.8866,4425.8,4425.7,41.10309999]
[1756908341259,0.8866,4425.8,4425.7,40.8]
[1756908342752,0.8866,4425.8,4425.7,41.10309999]
[1756908344754,0.244,4425.8,4425.7,41.50974999]
[1756908344954,0.5904,4426.0,4425.7,40.8]
[1756908345156,0.8088,4425.8,4425.7,40.8]
[1756908345559,0.3413,4426.5,4426.0,0.40662]
[1756908345771,0.8088,4426.3,4426.2,0.30309999]
[1756908346357,0.8088,4426.3,4426.2,41.10309999]
[1756908347269,4.8088,4426.3,4426.2,40.8]
[1756908347469,0.8088,4426.3,4426.2,40.8]
[1756908347769,1.0528,4426.3,4426.2,40.8]
[1756908348466,0.8088,4426.3,4426.2,40.8]
[1756908348660,1.0528,4426.3,4426.2,40.8]
[1756908348860,1.0528,4426.3,4425.6,0.40666]
[1756908348861,0.3464,4425.5,4425.1,3.2078]
[1756908349063,0.244,4425.4,4425.1,3.2078]
[1756908349253,0.8088,4425.3,4425.2,0.30309999]
[1756908349456,0.8088,4425.3,4425.2,41.10309999]
[1756908349758,0.8088,4425.3,4425.2,40.8]
[1756908349969,0.8088,4425.3,4425.2,41.10309999]
[1756908350365,0.8088,4425.8,4425.2,41.10309999]
[1756908350662,0.244,4425.7,4425.5,0.40667]
[1756908351057,0.8088,4425.6,4425.3,0.40669]
[1756908351259,0.244,4426.0,4425.6,0.40666]
[1756908351466,1.3992,4426.0,4425.9,0.30309999]
[1756908351966,1.3992,4426.0,4425.9,41.10309999]
[1756908352159,1.1552,4426.0,4425.9,41.10309999]
[1756908352468,33.3408,4426.9,4425.9,46.11968999]
[1756908352767,0.244,4426.8,4426.4,0.40659]
[1756908353068,0.8088,4426.7,4426.6,0.30309999]
[1756908353262,0.8088,4426.7,4426.0,0.40662]
[1756908353459,0.3464,4426.5,4426.0,0.40662]
[1756908353662,0.8088,4426.4,4426.3,0.30309999]
[1756908353855,0.8088,4426.4,4426.2,0.30309999]
[1756908354067,0.8088,4426.2,4426.1,40.8]
[1756908354470,1.0528,4426.2,4426.1,40.8]
[1756908356363,0.3464,4426.0,4425.0,3.61452]
[1756908356562,0.3464,4425.5,4425.4,0.30309999]
[1756908356760,0.3464,4425.5,4424.0,3.2078]
[1756908356761,0.8088,4424.9,4424.0,3.2078]
[1756908356965,3.5542,4424.5,4423.5,3.2078]
[1756908357159,3.5542,4424.5,4424.0,0.30309999]
[1756908357160,0.8088,4424.4,4424.0,0.30309999]
[1756908357360,0.8088,4424.2,4424.1,40.8]
[1756908359060,0.8088,4423.9,4423.0,3.2078]
[1756908359364,3.2078,4423.9,4423.0,3.2078]
[1756908359574,0.244,4423.8,4423.5,0.40685]
[1756908359771,0.244,4423.8,4423.6,0.40684]
[1756908360068,0.244,4423.8,4423.7,0.30309999]
[1756908360271,3.5542,4424.5,4423.7,0.30309999]
[1756908360463,3.5542,4424.5,4424.3,0.30309999]
[1756908360657,0.244,4424.4,4424.3,0.30309999]
[1756908360864,0.8088,4423.9,4423.6,40.8]
[1756908361163,0.8088,4423.7,4423.6,40.8]
[1756908362466,0.3464,4424.0,4423.6,40.8]
[1756908362672,1.1552,4424.0,4423.9,0.30309999]
[1756908362965,0.8088,4423.9,4423.6,40.8]
[1756908363170,0.8088,4423.7,4423.6,40.8]
[1756908364168,1.1552,4424.5,4424.0,0.4068]
[1756908364375,3.5542,4425.5,4425.0,0.40671]
[1756908364670,3.5542,4425.5,4424.4,3.2078]
[1756908364671,0.244,4425.4,4425.1,0.30309999]
[1756908365065,0.244,4425.3,4425.2,0.40669]
[1756908365269,0.244,4425.9,4425.4,0.30309999]
[1756908365470,0.244,4426.0,4425.9,0.40662]
[1756908365662,0.8088,4427.1,4425.9,40.8]
[1756908365875,0.244,4426.9,4426.8,0.40654]
[1756908366467,0.244,4426.9,4426.6,0.40656]
[1756908366668,0.244,4426.9,4426.8,0.30309999]
[1756908366669,1.0528,4426.9,4426.8,0.30309999]
[1756908367072,0.244,4426.9,4426.5,3.2078]
[1756908367275,0.8088,4426.8,4426.6,0.30309999]
[1756908367771,0.244,4426.9,4426.5,3.2078]
[1756908367772,1.0528,4426.9,4426.5,3.2078]
[1756908367978,0.244,4426.9,4426.6,0.30309999]
[1756908368277,1.21010559,4428.3,4426.6,0.30309999]
[1756908368278,1.0528,4427.6,4427.1,0.40651]
[1756908368572,0.244,4427.5,4427.2,0.4065]
[1756908368778,0.244,4427.5,4427.0,0.40652]
[1756908368976,1.0528,4427.5,4427.0,0.40652]
[1756908369276,0.244,4427.5,4427.4,0.30309999]
[1756908369477,1.0528,4427.5,4427.4,0.30309999]
[1756908369674,1.3992,4427.5,4426.5,3.2078]
[1756908369877,0.5904,4427.5,4426.6,40.8]
[1756908370073,0.3464,4427.0,4426.7,0.30309999]
[1756908370275,0.3464,4427.0,4426.6,40.8]
[1756908370276,0.8088,4426.8,4426.6,40.8]
[1756908370576,0.244,4426.9,4426.6,40.8]
[1756908370971,0.8088,4426.8,4426.6,40.8]
[1756908371370,0.244,4426.9,4426.6,40.8]
[1756908371774,0.5904,4427.0,4426.6,41.20656]
[1756908371974,0.5904,4427.0,4426.9,0.30309999]
[1756908372176,0.8146,4426.9,4426.6,40.8]
[1756908372371,0.3464,4427.5,4426.6,40.8]
[1756908372576,0.244,4427.4,4427.3,0.4065]
[1756908372771,0.8146,4427.9,4426.9,3.2078]
[1756908372979,0.8146,4427.9,4427.8,0.30309999]
[1756908373179,0.244,4427.9,4427.8,41.10309999]
[1756908373381,0.244,4427.9,4427.8,40.8]
[1756908373577,1.0586,4427.9,4427.8,40.8]
[1756908375385,32.554,4428.9,4428.2,0.40642]
[1756908375580,0.244,4428.6,4427.8,40.8]
[1756908375784,32.554,4428.9,4428.8,0.30309999]
[1756908375983,32.798,4428.9,4428.8,0.70946999]
[1756908376283,1.1515,4429.5,4428.4,3.2078]
[1756908376284,0.244,4429.3,4428.4,3.2078]
[1756908376487,0.8146,4429.2,4429.0,0.30309999]
[1756908377174,0.244,4429.3,4429.0,0.30309999]
[1756908377582,0.8146,4429.2,4429.1,0.30309999]
[1756908377980,0.3369,4429.5,4429.1,0.40633]
[1756908378287,1.0586,4429.4,4429.2,0.30309999]
[1756908378683,1.0586,4429.4,4428.9,0.40635]
[1756908378880,0.8146,4429.3,4429.2,0.30309999]
[1756908379289,0.244,4429.3,4429.2,0.30309999]
[1756908380186,1.0586,4429.3,4429.2,0.30309999]
[1756908380387,0.3369,4429.5,4429.2,0.30309999]
[1756908380580,0.244,4429.5,4429.4,0.30309999]
[1756908381083,1.0586,4429.5,4429.4,0.30309999]
[1756908381285,1.0586,4429.5,4429.4,41.10309999]
[1756908381485,1.3955,4429.5,4429.4,41.10309999]
[1756908381685,1.1515,4429.5,4429.4,40.8]
[1756908381884,1.3955,4429.5,4429.4,40.8]
[1756908382389,1.3955,4429.5,4427.9,3.2078]
[1756908382390,0.3369,4428.5,4427.9,3.2078]
[1756908382684,0.8146,4428.3,4427.9,3.2078]
[1756908382885,0.3369,4429.0,4428.4,0.30309999]
[1756908382886,1.1515,4429.0,4428.4,0.30309999]
[1756908383088,0.244,4429.1,4428.9,3.2078]
[1756908383479,0.244,4429.1,4429.0,0.30309999]
[1756908383680,1.0586,4429.1,4429.0,0.30309999]
[1756908384192,1.0586,4429.1,4429.0,40.8]
[1756908387188,5.0586,4429.1,4429.0,40.8]
[1756908387491,0.8146,4428.4,4427.9,0.40645]
[1756908387794,0.3369,4428.5,4427.8,3.2078]
[1756908387995,0.244,4428.4,4428.1,0.40642]
[1756908388289,0.244,4428.4,4428.3,0.30309999]
[1756908388488,0.244,4428.4,4428.3,3.51089999]
[1756908388690,0.8146,4429.3,4429.1,0.40633]
[1756908388900,1.3955,4429.5,4429.3,0.40632]
[1756908389086,1.3955,4429.5,4429.0,3.2078]
[1756908389087,0.3369,4430.0,4429.0,3.2078]
[1756908389293,0.244,4430.2,4430.0,0.40626]
[1756908389692,0.244,4430.2,4430.1,0.30309999]
[1756908389987,1.0586,4430.2,4430.1,0.30309999]
[1756908390300,0.8146,4430.6,4430.4,0.40622]
[1756908390499,0.244,4430.5,4430.4,0.40622]
[1756908390692,0.8146,4430.6,4430.5,0.30309999]
[1756908390999,0.244,4430.6,4430.5,44.31089999]
[1756908391191,0.3369,4431.0,4430.5,44.71710999]
[1756908391386,0.8146,4430.8,4430.5,44.31089999]
[1756908391694,0.243,4430.9,4430.5,40.8]
[1756908391892,0.8146,4430.8,4430.5,40.8]
[1756908392098,0.243,4430.9,4430.5,40.8]
[1756908392292,0.8146,4430.8,4430.6,0.4062]
[1756908392486,0.243,4430.7,4430.6,0.4062]
[1756908392686,0.243,4430.7,4430.5,40.8]
[1756908392895,0.3369,4431.0,4430.8,0.40618]
[1756908393092,0.243,4430.9,4430.8,0.40618]
[1756908393598,1.0576,4430.9,4430.8,0.40618]
[1756908393991,0.243,4430.9,4430.6,0.4062]
[1756908394192,0.243,4430.9,4430.8,0.30309999]
[1756908394497,3.2078,4431.4,4431.1,0.40615]
[1756908394796,0.243,4431.3,4431.1,0.40615]
[1756908395102,0.243,4431.5,4431.4,0.40613]
[1756908395291,0.8146,4431.8,4431.4,3.51089999]
[1756908395489,0.8146,4431.8,4431.7,0.4061]
[1756908395690,0.243,4431.9,4431.7,41.2061]
[1756908395890,0.8146,4432.4,4431.7,41.2061]
[1756908395891,0.243,4432.1,4432.0,0.40607]
[1756908396093,1.1515,4432.0,4431.7,41.2061]
[1756908396298,0.3369,4432.0,4431.7,40.8]
[1756908396896,0.3369,4432.0,4431.7,41.10309999]
[1756908398093,0.8146,4431.9,4431.7,40.8]
[1756908398290,0.3369,4432.0,4431.7,40.8]
[1756908398896,0.8146,4431.9,4431.8,0.30309999]
[1756908399201,1.0576,4431.9,4431.8,0.30309999]
[1756908399498,0.8146,4431.8,4431.7,40.8]
[1756908399698,4.8146,4431.8,4431.7,40.8]
[1756908399900,4.8146,4431.8,4430.3,3.2078]
[1756908399901,0.3369,4430.5,4430.3,3.2078]
[1756908400092,0.8146,4430.4,4430.3,3.2078]
[1756908400287,0.8146,4430.4,4430.3,40.8]
[1756908400688,5.32996307,4430.4,4430.3,40.8]
[1756908400888,5.51170551,4430.4,4428.8,3.2078]
[1756908401193,0.8146,4429.4,4429.2,0.30309999]
[1756908401400,1.0576,4429.3,4429.2,0.30309999]
[1756908401791,1.0576,4429.3,4428.3,3.2078]
[1756908401792,0.3395,4429.0,4428.3,3.2078]
[1756908402093,1.1997,4428.5,4428.4,40.8]
[1756908402296,1.95850321,4428.5,4428.4,40.8]
[1756908402487,1.95850321,4428.5,4427.3,3.2078]
[1756908402695,0.3395,4427.5,4426.8,3.2078]
[1756908402996,1.1032,4427.4,4427.3,40.8]
[1756908403196,1.1032,4427.4,4427.3,41.10309999]